fUSD/lending_fUSD_20241104
["ID","MTS","AMOUNT","RATE_DAILY","PERIOD"]
[341264497,1730735465713,-500.0,0.00036437,2]
[341264498,1730735465724,-500.0,0.00036437,2]
[341264499,1730735465734,-500.0,0.00036437,2]
[341264500,1730735465743,-500.0,0.00036437,2]
[341264501,1730735465753,-500.0,0.00036437,2]
[341264502,1730735465762,-500.0,0.00036437,2]
[341264503,1730735465772,-200.22596774,0.00036437,2]
[341264504,1730735465781,-549.42,0.00036437,2]
[341264505,1730735465791,-743.85,0.00036437,2]
[341264506,1730735465800,-500.0,0.00036438,2]
[341264507,1730735465809,-500.0,0.00036438,2]
[341264508,1730735465819,-500.0,0.00036438,2]
[341264509,1730735465829,-500.0,0.00036438,2]
[341264510,1730735465838,-500.0,0.00036438,2]
[341264511,1730735465848,-500.0,0.00036438,2]
[341264512,1730735465858,-500.0,0.00036438,2]
[341264513,1730735465867,-500.0,0.00036438,2]
[341264514,1730735465877,-500.0,0.00036438,2]
[341264515,1730735465887,-500.0,0.00036438,2]
[341264516,1730735465896,-500.0,0.00036438,2]
[341264517,1730735465906,-678.77,0.00036438,2]
[341264518,1730735465915,-644.15895289,0.00036438,2]
[341264519,1730735465925,-500.0,0.00036438,2]
[341264520,1730735465934,-500.0,0.00036438,2]
[341264521,1730735465944,-500.0,0.00036438,2]
[341264522,1730735465953,-500.0,0.00036438,2]
[341264523,1730735465963,-337.75235266,0.00036438,2]
[341264524,1730735465974,-500.0,0.00036438,2]
[341264525,1730735465984,-642.8193241,0.00036438,2]
[341264526,1730735465994,-510.21080947,0.00036438,2]
[341264527,1730735466004,-500.0,0.00036438,2]
[341264528,1730735466014,-500.0,0.00036438,2]
[341264529,1730735466023,-500.0,0.00036438,2]
[341264530,1730735466033,-595.97,0.00036438,2]
[341264531,1730735466043,-500.0,0.00036438,2]
[341264532,1730735466053,-500.0,0.00036438,2]
[341264533,1730735466062,-503.15098992,0.00036438,2]
[341264534,1730735466071,-562.46,0.00036438,2]
[341264535,1730735466081,-500.0,0.00036438,2]
[341264536,1730735466091,-500.0,0.00036438,2]
[341264537,1730735466100,-500.0,0.00036438,2]
[341264538,1730735466110,-845.59,0.00036438,2]
[341264539,1730735466119,-500.0,0.00036438,2]
[341264540,1730735466129,-500.0,0.00036438,2]
[341264541,1730735466139,-500.0,0.00036438,2]
[341264542,1730735466148,-500.0,0.00036438,2]
[341264543,1730735466157,-500.0,0.00036438,2]
[341264544,1730735466167,-500.0,0.00036438,2]
[341264545,1730735466176,-500.0,0.00036438,2]
[341264546,1730735466185,-750.1,0.00036438,2]
[341264547,1730735466195,-500.0,0.00036438,2]
[341264548,1730735466204,-500.0,0.00036438,2]
[341264549,1730735466213,-500.0,0.00036438,2]
[341264550,1730735466224,-500.0,0.00036438,2]
[341264551,1730735466233,-500.0,0.00036438,2]
[341264552,1730735466242,-500.0,0.00036438,2]
[341264553,1730735466251,-500.0,0.00036438,2]
[341264554,1730735466260,-500.0,0.00036438,2]
[341264555,1730735466270,-500.0,0.00036438,2]
[341264556,1730735466280,-500.0,0.00036438,2]
[341264557,1730735466289,-500.0,0.00036438,2]
[341264558,1730735466299,-567.62,0.00036438,2]
[341264559,1730735466308,-500.0,0.00036438,2]
[341264560,1730735466317,-500.0,0.00036438,2]
[341264561,1730735466327,-500.0,0.00036438,2]
[341264562,1730735466336,-500.0,0.00036438,2]
[341264563,1730735466346,-532.06230101,0.00036438,2]
[341264564,1730735466355,-574.65743754,0.00036438,2]
[341264565,1730735466365,-1971.19,0.00036438,2]
[341264566,1730735466374,-500.0,0.00036438,2]
[341264567,1730735466387,-343.3827859,0.00036438,2]
[341264568,1730735466399,-1610.78,0.00036438,2]
[341264569,1730735466410,-500.0,0.00036438,2]
[341264570,1730735466420,-1096.83,0.00036438,2]
[341264571,1730735466430,-500.0,0.00036438,2]
[341264572,1730735466440,-500.0,0.00036438,2]
[341264573,1730735466449,-500.0,0.00036438,2]
[341264574,1730735466458,-516.0,0.00036438,2]
[341264575,1730735466468,-500.0,0.00036438,2]
[341264576,1730735466478,-527.03,0.00036438,2]
[341264577,1730735466487,-500.0,0.00036438,2]
[341264578,1730735466496,-500.0,0.00036438,2]
[341264579,1730735466506,-680.27,0.00036438,2]
[341264580,1730735466516,-511.55,0.00036438,2]
[341264581,1730735466526,-500.0,0.00036438,2]
[341264582,1730735466536,-568.1,0.00036438,2]
[341264583,1730735466547,-630.31,0.00036438,2]
[341264584,1730735466558,-879.99,0.00036438,2]
[341264585,1730735466568,-500.0,0.00036438,2]
[341264586,1730735466579,-359.54385623,0.00036438,2]
[341264587,1730735466588,-1000.0,0.00036438,30]
[341264588,1730735466598,-860.12,0.00036438,2]
[341264589,1730735466608,-500.0,0.00036438,2]
[341264590,1730735466617,-500.0,0.00036438,2]
[341264591,1730735466627,-500.0,0.00036438,2]
[341264592,1730735466636,-500.0,0.00036438,2]
[341264593,1730735466647,-678.21,0.00036438,2]
[341264594,1730735466657,-777.65,0.00036438,2]
[341264595,1730735466667,-500.0,0.00036438,2]
[341264596,1730735466677,-500.0,0.00036438,2]
[341264597,1730735466686,-500.0,0.00036438,2]
[341264598,1730735466696,-512.81,0.00036438,2]
[341264599,1730735466706,-1976.03,0.00036438,2]
[341264600,1730735466718,-977.14,0.00036438,2]
[341264601,1730735466727,-500.0,0.00036438,2]
[341264602,1730735466736,-500.0,0.00036438,2]
[341264603,1730735466746,-500.0,0.00036438,2]
[341264604,1730735466755,-464.3613565,0.00036438,2]
[341264605,1730735466766,-445.06987653,0.00036438,2]
[341264606,1730735466776,-622.99,0.00036438,2]
[341264607,1730735466786,-500.0,0.00036438,2]
[341264608,1730735466796,-712.32,0.00036438,2]
[341264609,1730735466805,-500.0,0.00036438,2]
[341264610,1730735466815,-500.0,0.00036438,2]
[341264611,1730735466826,-1115.68,0.00036438,2]
[341264612,1730735466836,-500.0,0.00036438,2]
[341264613,1730735466846,-500.0,0.00036438,2]
[341264614,1730735466855,-500.0,0.00036438,2]
[341264615,1730735466865,-552.49714794,0.00036438,2]
[341264616,1730735466874,-500.0,0.00036438,2]
[341264617,1730735466884,-500.0,0.00036438,2]
[341264618,1730735466893,-500.0,0.00036438,2]
[341264619,1730735466903,-500.0,0.00036438,2]
[341264620,1730735466912,-531.41512462,0.00036438,2]
[341264621,1730735466921,-808.98,0.00036438,2]
[341264622,1730735466931,-500.0,0.00036438,2]
[341264623,1730735466940,-1323.81,0.00036438,2]
[341264624,1730735466950,-1426.9,0.00036438,2]
[341264625,1730735466959,-500.0,0.00036438,2]
[341264626,1730735466971,-500.0,0.00036438,2]
[341264627,1730735466981,-500.0,0.00036438,2]
[341264628,1730735466990,-500.0,0.00036438,2]
[341264629,1730735467000,-500.0,0.00036438,2]
[341264630,1730735467010,-666.03,0.00036438,2]
[341264631,1730735467020,-500.0,0.00036438,2]
[341264632,1730735467030,-464.6824099,0.00036438,2]
[341264633,1730735467040,-839.44,0.00036438,2]
[341264634,1730735467049,-500.0,0.00036438,2]
[341264635,1730735467060,-500.0,0.00036438,2]
[341264636,1730735467071,-500.0,0.00036438,2]
[341264637,1730735467081,-500.0,0.00036438,2]
[341264638,1730735467090,-500.0,0.00036438,2]
[341264639,1730735467101,-500.0,0.00036438,2]
[341264640,1730735467112,-500.0,0.00036438,2]
[341264641,1730735467122,-513.33592605,0.00036438,2]
[341264642,1730735467131,-737.61,0.00036438,2]
[341264643,1730735467140,-374.13166337,0.00036438,2]
[341264644,1730735467149,-560.17482503,0.00036438,2]
[341264645,1730735467160,-500.0,0.00036438,2]
[341264646,1730735467170,-500.0,0.00036438,2]
[341264647,1730735467180,-500.0,0.00036438,2]
[341264648,1730735467190,-500.0,0.00036438,2]
[341264649,1730735467200,-628.78,0.00036438,2]
[341264650,1730735467209,-753.23,0.00036438,2]
[341264651,1730735467221,-500.0,0.00036438,2]
[341264652,1730735467230,-500.0,0.00036438,2]
[341264653,1730735467240,-500.0,0.00036438,2]
[341264654,1730735467249,-500.0,0.00036438,2]
[341264655,1730735467260,-512.34,0.00036438,2]
[341264656,1730735467271,-500.0,0.00036438,2]
[341264657,1730735467282,-690.94,0.00036438,2]
[341264658,1730735467292,-1122.64,0.00036438,2]
[341264659,1730735467302,-956.46,0.00036438,2]
[341264660,1730735467311,-500.0,0.00036438,2]
[341264661,1730735467322,-438.74679845,0.00036438,2]
[341264662,1730735467331,-500.0,0.00036438,2]
[341264663,1730735467341,-500.0,0.00036438,2]
[341264664,1730735467351,-630.81721006,0.00036438,2]
[341264665,1730735467362,-500.0,0.00036438,2]
[341264666,1730735467372,-500.0,0.00036438,2]
[341264667,1730735467384,-500.0,0.00036438,2]
[341264668,1730735467396,-500.0,0.00036438,2]
[341264669,1730735467406,-500.0,0.00036438,2]
[341264670,1730735467416,-1420.89,0.00036438,2]
[341264671,1730735467426,-705.19,0.00036438,2]
[341264672,1730735467437,-500.0,0.00036438,2]
[341264673,1730735467447,-767.22,0.00036438,2]
[341264674,1730735467456,-500.0,0.00036438,2]
[341264675,1730735467467,-712.63,0.00036438,2]
[341264676,1730735467476,-500.0,0.00036438,2]
[341264677,1730735467486,-869.5,0.00036438,2]
[341264678,1730735467497,-521.31415815,0.00036438,2]
[341264679,1730735467508,-523.52358466,0.00036438,2]
[341264680,1730735467519,-500.0,0.00036438,2]
[341264681,1730735467528,-937.08,0.00036438,2]
[341264682,1730735467538,-764.15,0.00036438,2]
[341264683,1730735467547,-500.0,0.00036438,2]
[341264684,1730735467706,-1294.05,0.00036438,2]
[341264685,1730735467717,-500.0,0.00036438,2]
[341264686,1730735467726,-500.0,0.00036438,2]
[341264687,1730735467736,-510.62,0.00036438,2]
[341264688,1730735467744,-524.31,0.00036438,2]
[341264689,1730735467754,-500.0,0.00036438,2]
[341264690,1730735467763,-500.0,0.00036438,2]
[341264691,1730735467773,-500.0,0.00036438,2]
[341264692,1730735467783,-1118.2,0.00036438,2]
[341264693,1730735467794,-500.0,0.00036438,2]
[341264694,1730735467804,-500.0,0.00036438,2]
[341264695,1730735467813,-500.0,0.00036438,2]
[341264696,1730735467822,-711.3,0.00036438,2]
[341264697,1730735467831,-500.0,0.00036438,2]
[341264698,1730735467841,-1519.0,0.00036438,2]
[341264699,1730735467850,-500.0,0.00036438,2]
[341264700,1730735467861,-500.0,0.00036438,2]
[341264701,1730735467870,-500.0,0.00036438,2]
[341264702,1730735467879,-448.4774847,0.00036438,2]
[341264703,1730735467888,-500.0,0.00036438,2]
[341264704,1730735467898,-1126.44,0.00036438,2]
[341264705,1730735467909,-544.05,0.00036438,2]
[341264706,1730735467918,-500.0,0.00036438,2]
[341264707,1730735467929,-500.0,0.00036438,2]
[341264708,1730735467938,-500.0,0.00036438,2]
[341264709,1730735467948,-500.0,0.00036438,2]
[341264710,1730735467957,-1288.14,0.00036438,2]
[341264711,1730735467967,-543.83,0.00036438,2]
[341264712,1730735467977,-500.0,0.00036438,2]
[341264713,1730735467986,-636.36,0.00036438,2]
[341264714,1730735467995,-1218.15,0.00036438,2]
[341264715,1730735468005,-500.0,0.00036438,2]
[341264716,1730735468014,-1259.81,0.00036438,2]
[341264717,1730735468023,-1651.88,0.00036438,2]
[341264718,1730735468033,-319.99,0.00036438,2]
[341264719,1730735468042,-500.0,0.00036438,2]
[341264720,1730735468052,-500.0,0.00036438,2]
[341264721,1730735468061,-500.0,0.00036438,2]
[341264722,1730735468071,-1360.92,0.00036438,2]
[341264723,1730735468080,-500.0,0.00036438,2]
[341264724,1730735468089,-500.0,0.00036438,2]
[341264725,1730735468098,-912.89,0.00036438,2]
[341264726,1730735468107,-500.0,0.00036438,2]
[341264727,1730735468116,-500.0,0.00036438,2]
[341264728,1730735468125,-500.0,0.00036438,2]
[341264729,1730735468134,-209.12595689,0.00036438,2]
[341264730,1730735468144,-500.0,0.00036438,2]
[341264731,1730735468153,-719.39,0.00036438,2]
[341264732,1730735468162,-500.0,0.00036438,2]
[341264733,1730735468171,-704.43,0.00036438,2]
[341264734,1730735468181,-669.63,0.00036438,2]
[341264735,1730735468190,-500.0,0.00036438,2]
[341264736,1730735468199,-500.0,0.00036438,2]
[341264737,1730735468208,-529.69,0.00036438,2]
[341264738,1730735468218,-500.0,0.00036438,2]
[341264739,1730735468227,-500.0,0.00036438,2]
[341264740,1730735468236,-500.0,0.00036438,2]
[341264741,1730735468245,-500.0,0.00036438,2]
[341264742,1730735468255,-518.30423311,0.00036438,2]
[341264743,1730735468264,-500.0,0.00036438,2]
[341264744,1730735468273,-500.0,0.00036438,2]
[341264745,1730735468283,-1802.68,0.00036438,2]
[341264746,1730735468292,-500.0,0.00036438,2]
[341264747,1730735468301,-500.0,0.00036438,2]
[341264748,1730735468311,-500.0,0.00036438,2]
[341264749,1730735468321,-500.0,0.00036438,2]
[341264750,1730735468330,-500.0,0.00036438,2]
[341264751,1730735468339,-500.0,0.00036438,2]
[341264752,1730735468348,-687.5,0.00036438,2]
[341264753,1730735468358,-526.64290529,0.00036438,2]
[341264754,1730735468367,-500.0,0.00036438,2]
[341264755,1730735468376,-1321.04,0.00036438,2]
[341264756,1730735468387,-909.72,0.00036438,2]
[341264757,1730735468399,-273.00263928,0.00036438,2]
[341264758,1730735468409,-500.0,0.00036438,2]
[341264759,1730735468418,-500.0,0.00036438,2]
[341264760,1730735468428,-500.0,0.00036438,2]
[341264761,1730735468437,-386.66735937,0.00036438,2]
[341264762,1730735468446,-879.57,0.00036438,2]
[341264763,1730735468457,-500.0,0.00036438,2]
[341264764,1730735468467,-571.76,0.00036438,2]
[341264765,1730735468476,-575.93129061,0.00036438,2]
[341264766,1730735468486,-500.0,0.00036438,2]
[341264767,1730735468496,-500.0,0.00036438,2]
[341264768,1730735468505,-534.69,0.00036438,2]
[341264769,1730735468515,-500.0,0.00036438,2]
[341264770,1730735468524,-500.0,0.00036438,2]
[341264771,1730735468533,-500.0,0.00036438,2]
[341264772,1730735468542,-939.96,0.00036438,2]
[341264773,1730735468552,-455.87451522,0.00036438,2]
[341264774,1730735468561,-500.0,0.00036438,2]
[341264775,1730735468571,-980.66,0.00036438,2]
[341264776,1730735468580,-500.0,0.00036438,2]
[341264777,1730735468589,-546.11,0.00036438,2]
[341264778,1730735468599,-500.0,0.00036438,2]
[341264779,1730735468608,-511.22,0.00036438,2]
[341264780,1730735468617,-243.01656988,0.00036438,2]
[341264781,1730735468627,-500.0,0.00036438,2]
[341264782,1730735468636,-500.0,0.00036438,2]
[341264783,1730735468645,-505.5,0.00036438,2]
[341264784,1730735468655,-500.0,0.00036438,2]
[341264785,1730735468664,-375.09920753,0.00036438,2]
[341264786,1730735468673,-500.0,0.00036438,2]
[341264787,1730735468682,-500.0,0.00036438,2]
[341264788,1730735468691,-984.46,0.00036438,2]
[341264789,1730735468700,-614.73,0.00036438,2]
[341264790,1730735468710,-500.0,0.00036438,2]
[341264791,1730735468720,-602.48,0.00036438,2]
[341264792,1730735468729,-988.32,0.00036438,2]
[341264793,1730735468738,-500.0,0.00036438,2]
[341264794,1730735468748,-500.0,0.00036438,2]
[341264795,1730735468757,-500.0,0.00036438,2]
[341264796,1730735468766,-631.52,0.00036438,2]
[341264797,1730735468775,-553.74,0.00036438,2]
[341264798,1730735468784,-988.27,0.00036438,2]
[341264799,1730735468794,-769.98,0.00036438,2]
[341264800,1730735468803,-500.0,0.00036438,2]
[341264801,1730735468812,-500.0,0.00036438,2]
[341264802,1730735468821,-500.0,0.00036438,2]
[341264803,1730735468831,-500.0,0.00036438,2]
[341264804,1730735468841,-500.0,0.00036438,2]
[341264805,1730735468851,-1956.97,0.00036438,2]
[341264806,1730735468861,-500.0,0.00036438,2]
[341264807,1730735468871,-500.0,0.00036438,2]
[341264808,1730735468880,-500.0,0.00036438,2]
[341264809,1730735468889,-250.0,0.00036438,2]
[341264810,1730735468899,-500.0,0.00036438,2]
[341264811,1730735468909,-500.0,0.00036438,2]
[341264812,1730735468918,-500.0,0.00036438,2]
[341264813,1730735468927,-566.39,0.00036438,2]
[341264814,1730735468936,-1694.4,0.00036438,2]
[341264815,1730735468945,-500.0,0.00036438,2]
[341264816,1730735468955,-500.0,0.00036438,2]
[341264817,1730735468964,-500.0,0.00036438,2]
[341264818,1730735468977,-500.0,0.00036438,2]
[341264819,1730735468987,-500.0,0.00036438,2]
[341264820,1730735468996,-500.0,0.00036438,2]
[341264821,1730735469005,-515.3,0.00036438,2]
[341264822,1730735469014,-330.0462429,0.00036438,2]
[341264823,1730735469024,-500.0,0.00036438,2]
[341264824,1730735469033,-879.85,0.00036438,2]
[341264825,1730735469045,-500.0,0.00036438,2]
[341264826,1730735469055,-652.97,0.00036438,2]
[341264827,1730735469064,-266.04941752,0.00036438,2]
[341264828,1730735469074,-689.03,0.00036438,2]
[341264829,1730735469083,-500.0,0.00036438,2]
[341264830,1730735469092,-500.0,0.00036438,2]
[341264831,1730735469102,-500.0,0.00036438,2]
[341264832,1730735469112,-777.65,0.00036438,2]
[341264833,1730735469121,-500.0,0.00036438,2]
[341264834,1730735469130,-500.0,0.00036438,2]
[341264835,1730735469139,-340.23752506,0.00036438,2]
[341264836,1730735469148,-500.0,0.00036438,2]
[341264837,1730735469158,-500.0,0.00036438,2]
[341264838,1730735469168,-500.0,0.00036438,2]
[341264839,1730735469177,-500.0,0.00036438,2]
[341264840,1730735469186,-609.2,0.00036438,2]
[341264841,1730735469195,-1141.77,0.00036438,2]
[341264842,1730735469205,-815.25,0.00036438,2]
[341264843,1730735469214,-611.47,0.00036438,2]
[341264844,1730735469229,-500.0,0.00036438,2]
[341264845,1730735469238,-1247.49,0.00036438,2]
[341264846,1730735469247,-500.0,0.00036438,2]
[341264847,1730735469257,-2000.0,0.00036438,2]
[341264848,1730735469266,-500.0,0.00036438,2]
[341264849,1730735469277,-877.23,0.00036438,2]
[341264850,1730735469286,-1538.63,0.00036438,2]
[341264851,1730735469295,-500.0,0.00036438,2]
[341264852,1730735469304,-1051.45,0.00036438,2]
[341264853,1730735469313,-500.0,0.00036438,2]
[341264854,1730735469324,-4150.77,0.00036438,2]
[341264855,1730735469334,-500.0,0.00036438,2]
[341264856,1730735469343,-745.46,0.00036438,2]
[341264857,1730735469353,-1876.8,0.00036438,2]
[341264858,1730735469363,-1151.0,0.00036438,2]
[341264859,1730735469374,-1770.42,0.00036438,2]
[341264860,1730735469383,-151.0,0.00036438,7]
[341264861,1730735469397,-151.0,0.00036438,7]
[341264862,1730735469406,-510.09,0.00036438,2]
[341264863,1730735469415,-500.0,0.00036438,2]
[341264864,1730735469424,-522.29,0.00036438,2]
[341264865,1730735469435,-958.22,0.00036438,2]
[341264866,1730735469445,-192.79324315,0.00036438,2]
[341264867,1730735469455,-506.19700045,0.00036438,2]
[341264868,1730735469465,-1127.16,0.00036438,2]
[341264869,1730735469477,-500.0,0.00036438,2]
[341264870,1730735469486,-500.0,0.00036438,2]
[341264871,1730735469496,-865.69,0.00036438,2]
[341264872,1730735469505,-500.0,0.00036438,2]
[341264873,1730735469515,-500.0,0.00036438,2]
[341264874,1730735469526,-1128.13,0.00036438,2]
[341264875,1730735469535,-500.0,0.00036438,2]
[341264876,1730735469545,-500.0,0.00036438,2]
[341264877,1730735469554,-1045.13,0.00036438,2]
[341264878,1730735469564,-635.70726134,0.00036438,2]
[341264879,1730735469573,-500.0,0.00036438,2]
[341264880,1730735469583,-531.53,0.00036438,2]
[341264881,1730735469593,-175.06898842,0.00036438,2]
[341264882,1730735469603,-500.0,0.00036438,2]
[341264883,1730735469613,-500.0,0.00036438,2]
[341264884,1730735469622,-2026.72,0.00036438,2]
[341264885,1730735469634,-1098.81,0.00036438,2]
[341264886,1730735469645,-250.0,0.00036438,2]
[341264887,1730735469654,-548.97948348,0.00036438,2]
[341264888,1730735469664,-338.1695404,0.00036438,2]
[341264889,1730735469673,-520.4,0.00036438,2]
[341264890,1730735469682,-500.0,0.00036438,2]
[341264891,1730735469691,-519.04,0.00036438,2]
[341264892,1730735469700,-500.0,0.00036438,2]
[341264893,1730735469709,-500.0,0.00036438,2]
[341264894,1730735469719,-500.0,0.00036438,2]
[341264895,1730735469727,-500.0,0.00036438,2]
[341264896,1730735469738,-500.0,0.00036438,2]
[341264897,1730735469747,-627.52,0.00036438,2]
[341264898,1730735469756,-500.0,0.00036438,2]
[341264899,1730735469766,-500.0,0.00036438,2]
[341264900,1730735469775,-587.36,0.00036438,2]
[341264901,1730735469785,-500.0,0.00036438,2]
[341264902,1730735469794,-500.0,0.00036438,2]
[341264903,1730735469804,-371.63737276,0.00036438,2]
[341264904,1730735469814,-500.0,0.00036438,2]
[341264905,1730735469823,-500.0,0.00036438,2]
[341264906,1730735469833,-500.0,0.00036438,2]
[341264907,1730735469842,-2121.93,0.00036438,2]
[341264908,1730735469852,-500.0,0.00036438,2]
[341264909,1730735469862,-500.0,0.00036438,2]
[341264910,1730735469872,-582.71,0.00036438,2]
[341264911,1730735469882,-500.0,0.00036438,2]
[341264912,1730735469891,-1427.63,0.00036438,2]
[341264913,1730735469901,-791.14,0.00036438,2]
[341264914,1730735469910,-579.29757761,0.00036438,2]
[341264915,1730735469920,-500.0,0.00036438,2]
[341264916,1730735469930,-412.64824434,0.00036438,2]
[341264917,1730735469939,-1116.56,0.00036438,2]
[341264918,1730735469948,-2018.13,0.00036438,2]
[341264919,1730735469958,-500.0,0.00036438,2]
[341264920,1730735469969,-500.0,0.00036438,2]
[341264921,1730735469978,-1093.28,0.00036438,2]
[341264922,1730735469987,-500.0,0.00036438,2]
[341264923,1730735469997,-500.0,0.00036438,2]
[341264924,1730735470006,-1104.45,0.00036438,2]
[341264925,1730735470016,-1687.58,0.00036438,2]
[341264926,1730735470028,-500.0,0.00036438,2]
[341264927,1730735470039,-500.0,0.00036438,2]
[341264928,1730735470048,-911.86,0.00036438,2]
[341264929,1730735470059,-500.0,0.00036438,2]
[341264930,1730735470069,-835.19,0.00036438,2]
[341264931,1730735470079,-500.0,0.00036438,2]
[341264932,1730735470089,-878.68,0.00036438,2]
[341264933,1730735470098,-1098.84,0.00036438,2]
[341264934,1730735470109,-500.0,0.00036438,2]
[341264935,1730735470119,-1310.74,0.00036438,2]
[341264936,1730735470129,-500.0,0.00036438,2]
[341264937,1730735470139,-2183.79,0.00036438,2]
[341264938,1730735470148,-500.0,0.00036438,2]
[341264939,1730735470157,-820.36,0.00036438,2]
[341264940,1730735470167,-515.02,0.00036438,2]
[341264941,1730735470176,-500.0,0.00036438,2]
[341264942,1730735470186,-500.0,0.00036438,2]
[341264943,1730735470196,-500.0,0.00036438,2]
[341264944,1730735470206,-500.0,0.00036438,2]
[341264945,1730735470217,-500.0,0.00036438,2]
[341264946,1730735470226,-500.0,0.00036438,2]
[341264947,1730735470235,-500.0,0.00036438,2]
[341264948,1730735470245,-500.0,0.00036438,2]
[341264949,1730735470254,-500.0,0.00036438,2]
[341264950,1730735470264,-500.0,0.00036438,2]
[341264951,1730735470274,-500.0,0.00036438,2]
[341264952,1730735470283,-1708.91,0.00036438,2]
[341264953,1730735470292,-544.98,0.00036438,2]
[341264954,1730735470302,-500.0,0.00036438,2]
[341264955,1730735470311,-500.0,0.00036438,2]
[341264956,1730735470322,-660.53,0.00036438,2]
[341264957,1730735470332,-500.0,0.00036438,2]
[341264958,1730735470341,-850.52,0.00036438,2]
[341264959,1730735470352,-564.44,0.00036438,2]
[341264960,1730735470364,-389.26758136,0.00036438,2]
[341264961,1730735470375,-752.59,0.00036438,2]
[341264962,1730735470385,-500.0,0.00036438,2]
[341264963,1730735470398,-500.0,0.00036438,2]
[341264964,1730735470407,-500.0,0.00036438,2]
[341264965,1730735470416,-500.0,0.00036438,2]
[341264966,1730735470426,-500.0,0.00036438,2]
[341264967,1730735470435,-1296.67,0.00036438,2]
[341264968,1730735470446,-500.0,0.00036438,2]
[341264969,1730735470456,-1584.46,0.00036438,2]
[341264970,1730735470465,-500.0,0.00036438,2]
[341264971,1730735470475,-1066.3,0.00036438,2]
[341264972,1730735470484,-1582.17,0.00036438,2]
[341264973,1730735470495,-500.0,0.00036438,2]
[341264974,1730735470505,-500.0,0.00036438,2]
[341264975,1730735470517,-500.0,0.00036438,2]
[341264976,1730735470527,-441.20182835,0.00036438,2]
[341264977,1730735470536,-500.0,0.00036438,2]
[341264978,1730735470546,-500.0,0.00036438,2]
[341264979,1730735470556,-500.0,0.00036438,2]
[341264980,1730735470565,-500.0,0.00036438,2]
[341264981,1730735470575,-500.0,0.00036438,2]
[341264982,1730735470584,-500.0,0.00036438,2]
[341264983,1730735470594,-1042.76,0.00036438,2]
[341264984,1730735470604,-151.0,0.00036438,7]
[341264985,1730735470614,-151.0,0.00036438,7]
[341264986,1730735470623,-500.0,0.00036438,2]
[341264987,1730735470632,-1058.38,0.00036438,2]
[341264988,1730735470641,-500.0,0.00036438,2]
[341264989,1730735470651,-255.328752,0.00036438,7]
[341264990,1730735470661,-200.0,0.00036438,2]
[341264991,1730735470670,-505.09,0.00036438,2]
[341264992,1730735470680,-913.46,0.00036438,2]
[341264993,1730735470689,-2146.82,0.00036438,2]
[341264994,1730735470699,-766.26,0.00036438,2]
[341264995,1730735470709,-500.0,0.00036438,2]
[341264996,1730735470719,-1191.45,0.00036438,2]